bitfinex-derivatives/quotes_BTCF0:USTF0_20250719
["timestamp","ask_amount","ask_price","bid_price","bid_amount"]
[1752924095649,0.7903342,118500.0,118490.0,0.81836391]
[1752924095849,0.7903342,118500.0,118490.0,1.41800391]
[1752924097350,0.7903342,118500.0,118490.0,0.81836391]
[1752924097552,0.7903342,118500.0,118490.0,1.41792391]
[1752924098759,0.7903342,118500.0,118490.0,0.81836391]
[1752924098951,0.7903342,118500.0,118490.0,1.36816298]
[1752924099654,0.7903342,118500.0,118490.0,1.36788298]
[1752924099959,0.7903342,118500.0,118490.0,1.38712298]
[1752924100153,0.7903342,118500.0,118490.0,1.53521756]
[1752924100753,0.7903342,118500.0,118490.0,1.2390284]
[1752924100952,0.7903342,118500.0,118490.0,1.38712298]
[1752924101462,0.7903342,118500.0,118490.0,1.38684298]
[1752924103456,0.7903342,118500.0,118490.0,0.78828298]
[1752924103660,0.7903342,118500.0,118490.0,1.38664298]
[1752924103861,0.7903342,118500.0,118490.0,1.2385484]
[1752924104065,0.7903342,118500.0,118490.0,1.38664298]
[1752924105464,0.7903342,118500.0,118490.0,0.78828298]
[1752924105762,0.7903342,118500.0,118490.0,1.38580298]
[1752924107366,0.7903342,118500.0,118490.0,0.78828298]
[1752924107566,0.7903342,118500.0,118490.0,1.38580298]
[1752924107772,0.7903342,118500.0,118490.0,1.2377084]
[1752924108066,0.7903342,118500.0,118490.0,1.38580298]
[1752924108365,0.7903342,118500.0,118490.0,0.78828298]
[1752924108566,0.7903342,118500.0,118490.0,1.2373084]
[1752924108758,0.7903342,118500.0,118490.0,1.38540298]
[1752924110266,0.7903342,118500.0,118490.0,1.2373084]
[1752924110466,0.7903342,118500.0,118490.0,1.38540298]
[1752924110662,0.7903342,118500.0,118490.0,1.36616298]
[1752924110867,0.93842878,118500.0,118490.0,1.36616298]
[1752924112868,0.7903342,118500.0,118490.0,1.36616298]
[1752924113168,0.7903342,118500.0,118490.0,1.2180684]
[1752924113368,0.7903342,118500.0,118490.0,1.36616298]
[1752924114268,0.7903342,118500.0,118490.0,1.2373084]
[1752924114475,0.7903342,118500.0,118490.0,1.38540298]
[1752924115568,0.7903342,118500.0,118490.0,1.2373084]
[1752924115770,0.7903342,118500.0,118490.0,1.38540298]
[1752924116664,0.7903342,118500.0,118490.0,0.78828298]
[1752924116965,0.7903342,118500.0,118490.0,1.38384298]
[1752924117168,0.7903342,118500.0,118490.0,1.36460298]
[1752924117463,1.44732336,118500.0,118490.0,0.60552]
[1752924117669,0.93842878,118500.0,118490.0,0.92231298]
[1752924118872,0.93842878,118500.0,118490.0,0.91231298]
[1752924119972,0.93842878,118500.0,118490.0,1.27311298]
[1752924122072,0.7903342,118500.0,118490.0,1.27311298]
[1752924122278,0.93842878,118500.0,118490.0,1.31006298]
[1752924122479,0.7903342,118500.0,118490.0,1.32832298]
[1752924122775,0.7903342,118500.0,118490.0,1.47641756]
[1752924123075,0.7903342,118500.0,118490.0,1.32832298]
[1752924123277,0.7903342,118500.0,118490.0,1.47641756]
[1752924123671,0.7903342,118500.0,118490.0,1.32832298]
[1752924124875,0.7903342,118500.0,118490.0,1.47641756]
[1752924125177,0.7903342,118500.0,118490.0,1.5067212]
[1752924125575,0.51103,118500.0,118490.0,1.5067212]
[1752924125776,0.51103,118500.0,118490.0,1.5167212]
[1752924126184,0.5,118500.0,118490.0,1.5167212]
[1752924126481,0.3474495,118510.0,118500.0,0.2650842]
[1752924126671,0.3699595,118510.0,118500.0,0.92207336]
[1752924127080,0.3277903,118510.0,118500.0,0.82329084]
[1752924127285,0.2856228,118510.0,118500.0,0.8419618]
[1752924127472,0.7856228,118510.0,118500.0,0.8419618]
[1752924127674,0.7866228,118510.0,118500.0,0.8419618]
[1752924132878,0.7866228,118510.0,118500.0,0.64455516]
[1752924133078,0.7866228,118510.0,118500.0,0.8419618]
[1752924134385,0.78661,118510.0,118500.0,0.8419618]
[1752924136686,0.28661,118510.0,118500.0,0.8419618]
[1752924137286,0.2641,118510.0,118500.0,0.8419618]
[1752924137690,0.2631,118510.0,118500.0,0.8429618]
[1752924137981,0.28561,118510.0,118500.0,0.8429618]
[1752924138790,0.11694,118510.0,118500.0,0.8429618]
[1752924139588,0.09443,118510.0,118500.0,1.1381618]
[1752924139788,0.03726,118510.0,118500.0,1.1381618]
[1752924140187,0.03726,118510.0,118500.0,1.16846544]
[1752924140390,0.20593,118510.0,118500.0,1.16846544]
[1752924140784,0.03726,118510.0,118500.0,1.16846544]
[1752924141187,0.03726,118510.0,118500.0,1.1381618]
[1752924142292,0.0722,118510.0,118500.0,1.1381618]
[1752924143892,0.03726,118510.0,118500.0,0.8429618]
[1752924144996,0.20593,118510.0,118500.0,0.87326544]
[1752924145393,0.03726,118510.0,118500.0,0.87326544]
[1752924146990,0.03726,118510.0,118500.0,0.6758588]
[1752924147196,0.03726,118510.0,118500.0,1.1199536]
[1752924147799,0.03726,118510.0,118500.0,1.4151536]
[1752924151192,0.03726,118510.0,118500.0,1.38484996]
[1752924154993,0.01081,118510.0,118500.0,1.38484996]
[1752924156096,0.03698,118510.0,118500.0,1.38484996]
[1752924156303,0.03698,118510.0,118500.0,1.08075516]
[1752924156500,0.03698,118510.0,118500.0,1.52484996]
[1752924161195,0.03698,118510.0,118500.0,1.60060906]
[1752924162302,0.03698,118510.0,118500.0,1.15651426]
[1752924162501,0.07047,118510.0,118500.0,1.60060906]
[1752924163807,0.23914,118510.0,118500.0,1.60060906]
[1752924165701,0.07047,118510.0,118500.0,1.60060906]
[1752924166706,0.07047,118510.0,118500.0,1.57030542]
[1752924166898,0.07047,118510.0,118500.0,1.52484996]
[1752924167101,0.07047,118510.0,118500.0,1.37681836]
[1752924167502,0.23914,118510.0,118500.0,1.37681836]
[1752924167902,0.07047,118510.0,118500.0,1.37681836]
[1752924168303,0.23914,118510.0,118500.0,1.37681836]
[1752924169308,0.23914,118510.0,118500.0,1.97193836]
[1752924169508,0.07047,118510.0,118500.0,1.97193836]
[1752924170007,0.23914,118510.0,118500.0,1.97193836]
[1752924170708,0.07047,118510.0,118500.0,1.97193836]
[1752924171908,0.07047,118510.0,118500.0,2.11996996]
[1752924172102,0.03698,118510.0,118500.0,2.11996996]
[1752924173002,0.03652,118520.0,118510.0,0.25982]
[1752924173208,0.03652,118520.0,118510.0,0.9266832]
[1752924175510,0.03652,118520.0,118510.0,0.9721437]
[1752924175708,0.03652,118520.0,118510.0,0.9731437]
[1752924177510,0.03652,118520.0,118510.0,1.2683437]
[1752924178712,0.2864535,118530.0,118520.0,0.1686558]
[1752924179013,0.3028127,118530.0,118520.0,1.54127115]
[1752924179217,0.3258927,118530.0,118520.0,1.54127115]
[1752924181315,0.3268927,118530.0,118520.0,1.510979]
[1752924190421,0.3268927,118530.0,118520.0,1.5295255]
[1752924199836,0.4749243,118530.0,118520.0,0.7493797]
[1752924200137,0.4749243,118530.0,118520.0,1.5127155]
[1752924200334,0.3268927,118530.0,118520.0,1.5127155]
[1752924200737,0.8268927,118530.0,118520.0,1.5127155]
[1752924205538,0.9749243,118530.0,118520.0,1.1627481]
[1752924205738,0.9749243,118530.0,118520.0,1.3314038]
[1752924206041,0.9749243,118530.0,118520.0,1.4794354]
[1752924207335,0.9749243,118530.0,118520.0,1.1833722]
[1752924207537,0.9749243,118530.0,118520.0,1.4794354]
[1752924208542,0.9749243,118530.0,118520.0,0.8848354]
[1752924208834,0.2724958,118520.0,118510.0,0.6436858]
[1752924209043,0.4310874,118520.0,118510.0,1.3862374]
[1752924209739,0.4310874,118520.0,118510.0,0.7917174]
[1752924209945,0.9310874,118520.0,118510.0,1.3862374]
[1752924210146,0.9310874,118520.0,118510.0,0.7917174]
[1752924210435,0.9310874,118520.0,118510.0,1.3537974]
[1752924210741,0.9310874,118520.0,118510.0,1.3547974]
[1752924211337,0.7830558,118520.0,118510.0,1.3872374]
[1752924212748,0.9310874,118520.0,118510.0,0.99594]
[1752924212931,0.9310874,118520.0,118510.0,0.5494516]
[1752924213136,0.9310874,118520.0,118510.0,1.1260616]
[1752924213333,0.9310874,118520.0,118510.0,0.97803]
[1752924213544,0.9310874,118520.0,118510.0,1.2947316]
[1752924213745,0.7830558,118520.0,118510.0,1.1260616]
[1752924213946,0.7830558,118520.0,118510.0,1.4750432]
[1752924214139,0.7830558,118520.0,118510.0,1.3270116]
[1752924214539,0.7830558,118520.0,118510.0,1.17898]
[1752924214846,0.7830558,118520.0,118510.0,1.3270116]
[1752924216542,0.7830558,118520.0,118510.0,1.3442116]
[1752924217745,0.7830558,118520.0,118510.0,1.3596416]
[1752924217936,0.7830558,118520.0,118510.0,1.21161]
[1752924218140,0.7830558,118520.0,118510.0,1.3596416]
[1752924221848,0.7830558,118520.0,118510.0,1.19618]
[1752924222046,0.7830558,118520.0,118510.0,1.3442116]
[1752924223751,0.7830558,118520.0,118510.0,1.19618]
[1752924223951,0.7830558,118520.0,118510.0,1.3442116]
[1752924226850,0.7830558,118520.0,118510.0,1.19618]
[1752924227050,0.7830558,118520.0,118510.0,1.3442116]
[1752924229355,0.7830558,118520.0,118510.0,1.3593716]
[1752924231258,0.7830558,118520.0,118510.0,1.21134]
[1752924231559,0.7830558,118520.0,118510.0,1.3593716]
[1752924236460,0.7830558,118520.0,118510.0,1.53771463]
[1752924236664,0.7045658,118520.0,118510.0,1.53771463]
[1752924236857,0.5,118520.0,118510.0,1.53771463]
[1752924237764,0.280257,118530.0,118520.0,0.2553157]
[1752924237964,0.280257,118530.0,118520.0,0.9121789]
[1752924238265,0.2380966,118530.0,118520.0,1.0602105]
[1752924238467,0.2380966,118530.0,118520.0,0.94249033]
[1752924238968,0.06945,118530.0,118520.0,0.94249033]
[1752924240166,0.25547355,118530.0,118520.0,0.64642713]
[1752924240365,0.25547355,118530.0,118520.0,0.94249033]
[1752924240565,0.27744355,118530.0,118520.0,0.64642713]
[1752924240966,0.27744355,118530.0,118520.0,0.94249033]
[1752924241366,0.29927355,118530.0,118520.0,0.94249033]
[1752924242066,0.44730515,118530.0,118520.0,0.64642713]
[1752924242269,0.29927355,118530.0,118520.0,0.94249033]
[1752924242860,0.2818915,118530.0,118520.0,0.94249033]
[1752924243263,0.2818915,118530.0,118520.0,0.6161157]
[1752924243464,0.2818915,118530.0,118520.0,0.9121789]
[1752924243762,0.2818915,118530.0,118520.0,0.6161157]
[1752924244069,0.44668173,118530.0,118520.0,0.9121789]
[1752924244368,0.29865013,118530.0,118520.0,0.9121789]
[1752924245367,0.27682013,118530.0,118520.0,0.9121789]
[1752924245867,0.29923013,118530.0,118520.0,0.9121789]
[1752924248669,0.27682013,118530.0,118520.0,0.6161157]
[1752924248868,0.27682013,118530.0,118520.0,0.9121789]
[1752924250066,0.27682013,118530.0,118520.0,0.94349033]
[1752924250267,0.27682013,118530.0,118520.0,0.9131789]
[1752924250770,0.27682013,118530.0,118520.0,0.6171157]
[1752924250963,0.27682013,118530.0,118520.0,0.9131789]
[1752924253669,0.27682013,118530.0,118520.0,0.6171157]
[1752924253870,0.27682013,118530.0,118520.0,0.9131789]
[1752924254381,0.29923013,118530.0,118520.0,0.9131789]
[1752924260479,0.29923013,118530.0,118520.0,0.6171157]
[1752924260679,0.29923013,118530.0,118520.0,0.9131789]
[1752924260880,0.29923013,118530.0,118520.0,0.6171157]
[1752924261068,0.29923013,118530.0,118520.0,0.9131789]
[1752924263681,0.29923013,118530.0,118520.0,0.5523789]
[1752924263876,0.29923013,118530.0,118520.0,1.2739789]
[1752924264182,0.29923013,118530.0,118520.0,1.30429033]
[1752924269287,0.29923013,118530.0,118520.0,1.00822713]
[1752924269683,0.29923013,118530.0,118520.0,1.15625873]
[1752924269988,0.29923013,118530.0,118520.0,1.30429033]
[1752924276392,0.29923013,118530.0,118520.0,1.00822713]
[1752924276592,0.44726173,118530.0,118520.0,1.30429033]
[1752924277492,0.29923013,118530.0,118520.0,1.30429033]
[1752924277691,0.44726173,118530.0,118520.0,1.30429033]
[1752924277890,0.44726173,118530.0,118520.0,1.00822713]
[1752924278290,0.44726173,118530.0,118520.0,1.30429033]
[1752924279789,0.29923013,118530.0,118520.0,1.30429033]
[1752924280590,0.44726173,118530.0,118520.0,1.30429033]
[1752924281297,0.29923013,118530.0,118520.0,0.63226713]
[1752924281503,0.44726173,118530.0,118520.0,0.63226713]
[1752924281698,0.44726173,118530.0,118520.0,0.78029873]
[1752924282305,0.94726173,118530.0,118520.0,0.78029873]
[1752924283403,0.94726173,118530.0,118520.0,1.37733873]
[1752924283804,0.94726173,118530.0,118520.0,0.78029873]
[1752924284005,0.94726173,118530.0,118520.0,1.37733873]
[1752924284206,0.94726173,118530.0,118520.0,0.78029873]
[1752924284409,0.94726173,118530.0,118520.0,1.52517033]
[1752924284706,0.94726173,118530.0,118520.0,0.92833033]
[1752924284899,0.94726173,118530.0,118520.0,1.52517033]
[1752924285095,0.94726173,118530.0,118520.0,1.52505033]
[1752924285406,0.94726173,118530.0,118520.0,1.22898713]
[1752924285606,0.94726173,118530.0,118520.0,1.52505033]
[1752924286003,0.94726173,118530.0,118520.0,1.37701873]
[1752924287205,0.94726173,118530.0,118520.0,1.3467073]
[1752924287404,0.94726173,118530.0,118520.0,1.4947389]
[1752924288502,0.79923013,118530.0,118520.0,1.4947389]
[1752924289096,0.79923013,118530.0,118520.0,1.53868033]
[1752924291306,0.79923013,118530.0,118520.0,1.5083689]
[1752924292210,0.94726173,118530.0,118520.0,0.3618]
[1752924292409,0.94726173,118530.0,118520.0,0.59724]
[1752924293111,0.94726173,118530.0,118520.0,0.7452716]
[1752924294510,0.94726173,118530.0,118520.0,0.1490316]
[1752924295508,0.94726173,118530.0,118520.0,0.001]
[1752924295814,0.94726173,118530.0,118520.0,0.3176873]
[1752924298313,0.79923013,118530.0,118520.0,0.3555973]
[1752924298520,0.79923013,118530.0,118520.0,0.5358489]
[1752924298709,0.94726173,118530.0,118520.0,0.5358489]
[1752924300009,0.94726173,118530.0,118520.0,0.8966489]
[1752924301211,0.94726173,118530.0,118520.0,0.6005857]
[1752924301417,0.94726173,118530.0,118520.0,0.8966489]
[1752924304418,0.79923013,118530.0,118520.0,0.8966489]
[1752924304917,0.79923013,118530.0,118520.0,0.6133357]
[1752924305108,0.79923013,118530.0,118520.0,0.9093989]
[1752924306320,0.79923013,118530.0,118520.0,0.93971033]
[1752924313827,0.79923013,118530.0,118520.0,0.9093989]
[1752924314025,0.79923013,118530.0,118520.0,0.93970231]
[1752924318138,0.79923013,118530.0,118520.0,0.64363911]
[1752924318439,0.79923013,118530.0,118520.0,0.93970231]
[1752924319033,0.73764013,118530.0,118520.0,0.93970231]
[1752924319239,0.72070013,118530.0,118520.0,0.93970231]
[1752924319538,0.75330013,118530.0,118520.0,0.93970231]
[1752924320540,0.7365415,118530.0,118520.0,0.93970231]
[1752924321441,0.2365415,118530.0,118520.0,0.93970231]
[1752924321837,0.2563315,118530.0,118520.0,0.93970231]
[1752924322640,0.2563315,118530.0,118520.0,0.64363911]
[1752924322840,0.2766115,118530.0,118520.0,0.93970231]
[1752924323845,0.2766115,118530.0,118520.0,0.64363911]
[1752924324044,0.2766115,118530.0,118520.0,0.93970231]
[1752924329949,0.2563315,118530.0,118520.0,0.93970231]
[1752924330148,0.2365415,118530.0,118520.0,0.98515742]
[1752924331253,0.2365415,118530.0,118520.0,0.93970231]
[1752924333051,0.2365415,118530.0,118520.0,1.53478231]
[1752924335959,0.2568115,118530.0,118520.0,1.53478231]
[1752924337060,0.2568115,118530.0,118520.0,0.93970231]
[1752924337253,0.2568115,118530.0,118520.0,1.53474231]
[1752924337759,0.2568115,118530.0,118520.0,1.23867911]
[1752924337960,0.2568115,118530.0,118520.0,1.53474231]
[1752924338160,0.2568115,118530.0,118520.0,1.23867911]
[1752924338461,0.2568115,118530.0,118520.0,1.53474231]
[1752924339156,0.2568115,118530.0,118520.0,1.23867911]
[1752924339360,0.2568115,118530.0,118520.0,1.53474231]
[1752924339859,0.2768815,118530.0,118520.0,0.93970231]
[1752924340054,0.2768815,118530.0,118520.0,1.53470231]
[1752924341259,0.2768815,118530.0,118520.0,1.5043989]
[1752924342357,0.2768815,118530.0,118520.0,0.9093989]
[1752924342561,0.2768815,118530.0,118520.0,1.5043589]
[1752924344165,0.2768815,118530.0,118520.0,0.9093989]
[1752924344365,0.2768815,118530.0,118520.0,1.5043589]
[1752924344567,0.2768815,118530.0,118520.0,1.2082957]
[1752924344762,0.2768815,118530.0,118520.0,1.5043589]
[1752924346761,0.2768815,118530.0,118520.0,0.9093989]
[1752924346964,0.2768815,118530.0,118520.0,1.5042789]
[1752924347268,0.2768815,118530.0,118520.0,1.2082157]
[1752924347467,0.2768815,118530.0,118520.0,1.5042789]
[1752924351265,0.2768815,118530.0,118520.0,1.53458231]
[1752924353370,0.2768815,118530.0,118520.0,1.23851911]
[1752924353672,0.2768815,118530.0,118520.0,1.53458231]
[1752924356068,0.2768815,118530.0,118520.0,1.23851911]
[1752924356268,0.2768815,118530.0,118520.0,1.53458231]
[1752924361978,0.2768815,118530.0,118520.0,1.23851911]
[1752924362274,0.2768815,118530.0,118520.0,1.53458231]
[1752924364977,0.2768815,118530.0,118520.0,1.23851911]
[1752924365173,0.2768815,118530.0,118520.0,1.53458231]
[1752924366677,0.2768815,118530.0,118520.0,1.53426231]
[1752924367077,0.2768815,118530.0,118520.0,0.93970231]
[1752924367279,0.2768815,118530.0,118520.0,1.53422231]
[1752924368775,0.2768815,118530.0,118520.0,0.93970231]
[1752924368980,0.2768815,118530.0,118520.0,1.53422231]
[1752924369684,0.2768815,118530.0,118520.0,0.93970231]
[1752924369982,0.2768815,118530.0,118520.0,1.53418231]
[1752924370283,0.2768815,118530.0,118520.0,0.93970231]
[1752924370582,0.2768815,118530.0,118520.0,1.53418231]
[1752924370785,0.2568115,118530.0,118520.0,1.53418231]
[1752924372483,0.2568115,118530.0,118520.0,0.93970231]
[1752924372684,0.2568115,118530.0,118520.0,1.53410231]
[1752924375388,0.2568115,118530.0,118520.0,1.23803911]
[1752924375588,0.2568115,118530.0,118520.0,1.53410231]
[1752924379184,0.0353,118530.0,118520.0,1.68213391]
[1752924379385,0.2039415,118530.0,118520.0,1.68213391]
[1752924379584,0.2039415,118530.0,118520.0,1.53410231]
[1752924379793,0.2039415,118530.0,118520.0,1.57955742]
[1752924381291,0.2039415,118530.0,118520.0,1.5037989]
[1752924383292,0.2039415,118530.0,118520.0,1.6518305]
[1752924384191,0.0353,118530.0,118520.0,1.6518305]
[1752924384694,0.06762,118530.0,118520.0,1.6518305]
[1752924385706,0.2362615,118530.0,118520.0,1.5037989]
[1752924385900,0.0353,118530.0,118520.0,1.5037989]
[1752924387803,0.06762,118530.0,118520.0,1.8645989]
[1752924389307,0.2362615,118530.0,118520.0,1.8645989]
[1752924391206,0.2362615,118530.0,118520.0,1.5685357]
[1752924391407,0.2362615,118530.0,118520.0,1.89490231]
[1752924391998,0.2782215,118530.0,118520.0,1.89458231]
[1752924392197,0.2782215,118530.0,118520.0,1.28775231]
[1752924392397,0.2782215,118530.0,118520.0,1.88183231]
[1752924393207,0.2782215,118530.0,118520.0,1.59818911]
[1752924393409,0.2782215,118530.0,118520.0,1.89425231]
[1752924393906,0.2782215,118530.0,118520.0,1.59818911]
[1752924394107,0.4262531,118530.0,118520.0,1.73376071]
[1752924394305,0.9262531,118530.0,118520.0,0.03130341]
[1752924394500,0.9262531,118530.0,118520.0,0.001]
[1752924395309,0.9262531,118530.0,118520.0,0.1490316]
[1752924397515,0.9262531,118530.0,118520.0,0.001]
[1752924397714,0.9262531,118530.0,118520.0,0.1490316]
[1752924400018,0.9262531,118530.0,118520.0,0.001]
[1752924401317,1.2870531,118530.0,118520.0,0.001]
[1752924402819,0.9262531,118530.0,118520.0,0.001]
[1752924403018,1.2870531,118530.0,118520.0,0.001]
[1752924403216,1.1390215,118530.0,118520.0,0.001]
[1752924403519,1.2870531,118530.0,118520.0,0.001]
[1752924404813,1.2870531,118530.0,118520.0,0.1490316]
[1752924405219,1.2870531,118530.0,118520.0,0.001]
[1752924410719,1.2870531,118530.0,118520.0,0.1490316]
[1752924412824,0.9262531,118530.0,118520.0,0.1490316]
[1752924413028,1.2870531,118530.0,118520.0,0.1490316]
[1752924415324,1.1390215,118530.0,118520.0,0.001]
[1752924415526,1.2870531,118530.0,118520.0,0.1490316]
[1752924416224,1.2870531,118530.0,118520.0,0.001]
[1752924416525,1.2870531,118530.0,118520.0,0.1490316]
[1752924420730,1.2870531,118530.0,118520.0,0.001]
[1752924421527,1.1390215,118530.0,118520.0,0.001]
[1752924421726,1.2870531,118530.0,118520.0,0.001]
[1752924422524,1.2870531,118530.0,118520.0,0.1490316]
[1752924424127,0.9262531,118530.0,118520.0,0.1490316]
[1752924424322,1.2870531,118530.0,118520.0,0.1490316]
[1752924424729,1.2870531,118530.0,118520.0,0.001]
[1752924424925,1.2870531,118530.0,118520.0,0.1490316]
[1752924425427,1.2870531,118530.0,118520.0,0.001]
[1752924427531,0.9262531,118530.0,118520.0,0.001]
[1752924428324,0.2629757,118520.0,118510.0,0.01880124]
[1752924428531,1.1780882,118520.0,118510.0,0.01880124]
[1752924429232,1.5388882,118520.0,118510.0,0.01880124]
[1752924429627,1.5388882,118520.0,118510.0,0.01980124]
[1752924430028,2.0388882,118520.0,118510.0,0.01980124]
[1752924431335,2.0388882,118520.0,118510.0,0.02180124]
[1752924433035,1.742825,118520.0,118510.0,0.02180124]
[1752924433235,2.0388882,118520.0,118510.0,0.02180124]
[1752924433434,1.149345,118520.0,118510.0,0.02180124]
[1752924433935,0.56326,118520.0,118510.0,0.62930114]
[1752924434130,0.56326,118520.0,118510.0,0.92536434]
[1752924434730,0.08013292,118520.0,118510.0,0.62930114]
[1752924434934,0.08013292,118520.0,118510.0,0.92636434]
[1752924435330,0.04909292,118520.0,118510.0,0.92636434]
[1752924435531,0.01687292,118520.0,118510.0,0.92336434]
[1752924435736,0.01687292,118520.0,118510.0,0.92636434]
[1752924435932,0.01687292,118520.0,118510.0,1.04636434]
[1752924437137,0.01687292,118520.0,118510.0,0.75030114]
[1752924437637,0.01687292,118520.0,118510.0,0.91942348]
[1752924438733,0.06326,118530.0,118520.0,0.2045957]
[1752924438942,0.06326,118530.0,118520.0,1.39996804]
[1752924439142,0.06326,118530.0,118520.0,1.2308457]
[1752924439445,0.06326,118530.0,118520.0,1.39996804]
[1752924440031,0.03222,118530.0,118520.0,1.39996804]
[1752924440235,0.03222,118530.0,118520.0,1.56909038]
[1752924440636,0.03222,118530.0,118520.0,1.2308457]
[1752924440836,0.03222,118530.0,118520.0,1.56909038]
[1752924441142,0.03222,118530.0,118520.0,1.39996804]
[1752924441343,0.03222,118530.0,118520.0,1.43128757]
[1752924441933,0.03222,118530.0,118520.0,1.43228757]
[1752924442338,0.03222,118530.0,118520.0,1.43428757]
[1752924443140,0.03222,118530.0,118520.0,1.26516523]
[1752924443543,0.03222,118530.0,118520.0,1.43428757]
[1752924444547,0.06326,118530.0,118520.0,1.43428757]
[1752924445046,0.06326,118530.0,118520.0,1.26516523]
[1752924445246,0.06326,118530.0,118520.0,1.43428757]
[1752924445636,0.06326,118530.0,118520.0,1.30539495]
[1752924445942,0.06326,118530.0,118520.0,1.47451729]
[1752924448344,0.06326,118530.0,118520.0,1.30539495]
[1752924448551,0.06326,118530.0,118520.0,1.47451729]
[1752924450650,0.06326,118530.0,118520.0,1.30539495]
[1752924450850,0.06326,118530.0,118520.0,1.47451729]
[1752924451051,0.06326,118530.0,118520.0,1.30539495]
[1752924451351,0.06326,118530.0,118520.0,1.47451729]
[1752924451851,0.06326,118530.0,118520.0,1.30539495]
[1752924452052,0.06326,118530.0,118520.0,1.47451729]
[1752924453152,0.06326,118530.0,118520.0,1.30539495]
[1752924453341,0.06326,118530.0,118520.0,1.47451729]
[1752924454046,0.03222,118530.0,118520.0,1.47451729]
[1752924454246,0.32794683,118540.0,118530.0,0.2440215]
[1752924454443,0.32794683,118540.0,118530.0,0.82930886]
[1752924454748,0.82794683,118540.0,118530.0,0.82930886]
[1752924455351,0.82794683,118540.0,118530.0,0.66018652]
[1752924455555,0.82794683,118540.0,118530.0,0.83030886]
[1752924455954,0.82794683,118540.0,118530.0,0.83130886]
[1752924457857,0.82794683,118540.0,118530.0,0.85401332]
[1752924458058,0.8109592,118540.0,118530.0,0.84159332]
[1752924458452,0.8109592,118540.0,118530.0,0.67247098]
[1752924458756,0.8109592,118540.0,118530.0,0.84159332]
[1752924458956,0.8109592,118540.0,118530.0,0.67247098]
[1752924459262,0.93780852,118540.0,118530.0,0.7993203]
[1752924459464,0.8109592,118540.0,118530.0,0.7993203]
[1752924459966,0.8109592,118540.0,118530.0,0.8117403]
[1752924460167,0.8109592,118540.0,118530.0,0.80695417]
[1752924461062,0.8109592,118540.0,118530.0,0.82967109]
[1752924461362,0.8109592,118540.0,118530.0,0.80695417]
[1752924461662,0.8109592,118540.0,118530.0,0.68010485]
[1752924461863,0.8109592,118540.0,118530.0,0.80695417]
[1752924462159,0.8109592,118540.0,118530.0,0.72555996]
[1752924462462,0.8109592,118540.0,118530.0,0.85240928]
[1752924463165,0.8109592,118540.0,118530.0,0.8221384]
[1752924464362,0.7688022,118540.0,118530.0,0.8221384]
[1752924465464,0.7688022,118540.0,118530.0,0.69528908]
[1752924465657,0.7688022,118540.0,118530.0,0.8221384]
[1752924467566,0.89565152,118540.0,118530.0,0.8221384]
[1752924467767,0.89565152,118540.0,118530.0,0.69528908]
[1752924467962,0.89565152,118540.0,118530.0,0.8097184]
[1752924468669,0.7688022,118540.0,118530.0,0.8097184]
[1752924468870,0.89565152,118540.0,118530.0,0.8097184]
[1752924469068,0.7688022,118540.0,118530.0,0.8221384]
[1752924469366,0.89565152,118540.0,118530.0,0.8221384]
[1752924470166,0.89565152,118540.0,118530.0,0.8097184]
[1752924470365,0.89565152,118540.0,118530.0,0.68286908]
[1752924470668,0.89565152,118540.0,118530.0,0.8097184]
[1752924471271,0.89565152,118540.0,118530.0,0.84009576]
[1752924471665,0.89565152,118540.0,118530.0,0.71324644]
[1752924471862,0.89565152,118540.0,118530.0,0.84009576]
[1752924472669,0.89565152,118540.0,118530.0,0.71324644]
[1752924472972,0.7688022,118540.0,118530.0,0.84009576]
[1752924473272,0.7688022,118540.0,118530.0,0.71324644]
[1752924473473,0.89565152,118540.0,118530.0,0.84009576]
[1752924473669,0.7688022,118540.0,118530.0,0.84009576]
[1752924474975,0.7688022,118540.0,118530.0,0.84023135]
[1752924475274,0.89565152,118540.0,118530.0,0.84023135]
[1752924475776,0.89565152,118540.0,118530.0,0.73994875]
[1752924476177,0.7688022,118540.0,118530.0,0.73994875]
[1752924476380,0.89565152,118540.0,118530.0,0.73994875]
[1752924476976,0.89565152,118540.0,118530.0,0.61309943]
[1752924477179,0.7688022,118540.0,118530.0,0.73994875]
[1752924477377,0.89565152,118540.0,118530.0,0.73994875]
[1752924480180,0.7688022,118540.0,118530.0,0.73994875]
[1752924480383,0.89565152,118540.0,118530.0,0.73994875]
[1752924480783,0.7688022,118540.0,118530.0,0.73994875]
[1752924480980,0.89565152,118540.0,118530.0,0.75236875]
[1752924481384,0.7688022,118540.0,118530.0,0.78274611]
[1752924481782,0.7688022,118540.0,118530.0,0.65589679]
[1752924481979,0.7688022,118540.0,118530.0,0.77032611]
[1752924483988,0.89565152,118540.0,118530.0,0.64347679]
[1752924484188,0.89565152,118540.0,118530.0,0.77032611]
[1752924484581,0.89565152,118540.0,118530.0,0.64347679]
[1752924484783,0.89565152,118540.0,118530.0,0.77032611]
[1752924485486,0.89565152,118540.0,118530.0,0.64347679]
[1752924485986,0.89565152,118540.0,118530.0,0.77032611]
[1752924486186,0.89565152,118540.0,118530.0,0.81578122]
[1752924486885,0.7688022,118540.0,118530.0,0.81578122]
[1752924487587,0.7688022,118540.0,118530.0,0.6889319]
[1752924487788,0.7688022,118540.0,118530.0,0.81578122]
[1752924489187,0.7688022,118540.0,118530.0,0.6889319]
[1752924489385,0.7688022,118540.0,118530.0,0.81578122]
[1752924490688,0.7688022,118540.0,118530.0,0.6889319]
[1752924490887,0.7688022,118540.0,118530.0,0.81578122]
[1752924492491,0.7688022,118540.0,118530.0,0.77032611]
[1752924492893,0.7688022,118540.0,118530.0,0.64347679]
[1752924493089,0.7688022,118540.0,118530.0,0.77032611]
[1752924493289,1.02250084,118540.0,118530.0,0.39317736]
[1752924493486,1.02250084,118540.0,118530.0,0.03237736]
[1752924493784,0.7688022,118540.0,118530.0,0.03237736]
[1752924494193,1.02250084,118540.0,118530.0,0.03237736]
[1752924494492,1.02250084,118540.0,118530.0,0.15922668]
[1752924495392,1.02250084,118540.0,118530.0,0.32786818]
[1752924495581,0.89565152,118540.0,118530.0,0.68866818]
[1752924496190,0.89565152,118540.0,118530.0,0.71144114]
[1752924496796,0.89565152,118540.0,118530.0,0.58459182]
[1752924496997,0.89565152,118540.0,118530.0,0.71144114]
[1752924497499,0.89565152,118540.0,118530.0,0.73007274]
[1752924497693,0.89565152,118540.0,118530.0,0.60322342]
[1752924497996,0.89565152,118540.0,118530.0,0.73007274]
[1752924498595,0.89565152,118540.0,118530.0,0.71144114]
[1752924498790,0.89565152,118540.0,118530.0,0.68106378]
[1752924499197,1.02250084,118540.0,118530.0,0.68106378]
[1752924500197,1.02250084,118540.0,118530.0,0.51242228]
[1752924501787,1.02250084,118540.0,118530.0,0.38557296]
[1752924501992,1.02250084,118540.0,118530.0,0.51242228]
[1752924503599,1.02250084,118540.0,118530.0,0.68106378]
[1752924504097,0.89565152,118540.0,118530.0,0.68106378]